fUST/lending_fUST_20240427
["ID","MTS","AMOUNT","RATE_DAILY","PERIOD"]
[323736503,1714224329255,-275.96106052,0.0004319,30]
[323736504,1714224329279,-185.36405554,0.00043222,30]
[323736505,1714224329303,-397.57237085,0.0004327,30]
[323736506,1714224329326,-2228.46,0.00043287,44]
[323736507,1714224329351,-185.36405554,0.00043293,30]
[323736508,1714224329377,-192.581771,0.00043323,30]
[323736509,1714224329401,-275.96106052,0.0004343,30]
[323736510,1714224329424,-2411.28280509,0.00043444,30]
[323736511,1714224329448,-192.581771,0.00043485,30]
[323736512,1714224329471,-275.96106052,0.00043565,30]
[323736513,1714224329494,-397.57237085,0.00043661,30]
[323736514,1714224329517,-1505.22675217,0.00043662,30]
[323736515,1714224330674,-842.4135316,0.00043662,30]
[323736516,1714224330699,-185.36405554,0.00043745,30]
[323736517,1714224330725,-11382.6448712,0.00043836,120]
[323736518,1714224330750,-397.57237085,0.00043986,30]
[323736519,1714224330777,-157.88977021,0.00044,120]
[323736520,1714224330800,-478.9295661,0.00044,30]
[323736521,1714224330827,-1500.0,0.00044,120]
[323736522,1714224330851,-300.0,0.00044,18]
[323736523,1714224330874,-185.36405554,0.00044029,30]
[323736524,1714224330897,-192.581771,0.00044032,30]
[323736525,1714224330925,-2411.28280509,0.00044039,30]
[323736526,1714224330949,-2347.64028377,0.00044082,30]
[323736527,1714224330972,-279618.3169191,0.00044083,90]
[323736528,1714224342744,-20000.0,0.0003485,10]
[323736529,1714224342773,-763.0,0.000409,16]
[323736530,1714224342797,-568.0,0.000409,16]
[323736531,1714224342824,-154.8606378,0.00041,15]
[323736532,1714224342850,-16262.06379785,0.00041,120]
[323736533,1714224342874,-381.0,0.00041,16]
[323736534,1714224342904,-261871.07556435,0.00044083,90]
[323736535,1714224347523,-300000.0,0.00034,60]
[323736536,1714224350811,-300000.0,0.00034,60]
[323736537,1714224354160,-238942.29576591,0.00034,60]
[323736538,1714224354185,-61057.70423409,0.00035,30]
[323736539,1714224363985,-802.3617654,0.000275,17]
[323736540,1714224364437,-8215.48685932,0.0003485,10]
[323736541,1714224364463,-94219.63035423,0.00035,30]
[323736542,1714224364492,-16262.06379785,0.00041,120]
[323736543,1714224364518,-180500.4572232,0.00044083,90]
[323736544,1714224370892,-748207.86488501,0.00044083,90]
[323736545,1714224370916,-185.36405554,0.0004409,30]
[323736546,1714224370941,-397.57237085,0.0004416,30]
[323736547,1714224371087,-275.96106052,0.00044169,30]
[323736548,1714224371112,-2347.64028377,0.00044178,30]
[323736549,1714224371136,-2347.64028377,0.00044193,30]
[323736550,1714224371160,-397.57237085,0.00044259,30]
[323736551,1714224371183,-397.57237085,0.00044292,30]
[323736552,1714224371209,-275.96106052,0.00044301,30]
[323736553,1714224371233,-2347.64028377,0.00044319,30]
[323736554,1714224371257,-185.36405554,0.00044321,30]
[323736555,1714224371281,-154.8530187,0.0004434,10]
[323736556,1714224371305,-192.581771,0.00044344,30]
[323736557,1714224371330,-2228.46,0.00044383,46]
[323736558,1714224371356,-192.581771,0.00044433,30]
[323736559,1714224371379,-185.36405554,0.0004453,30]
[323736560,1714224371406,-2347.64028377,0.00044569,30]
[323736561,1714224371430,-397.57237085,0.00044586,30]
[323736562,1714224371453,-158.16159394,0.00044658,30]
[323736563,1714224371477,-185.36405554,0.000447,30]
[323736564,1714224371502,-2347.64028377,0.00044756,30]
[323736565,1714224371526,-192.581771,0.00044758,30]
[323736566,1714224371549,-185.36405554,0.0004476,30]
[323736567,1714224371573,-397.57237085,0.00044779,30]
[323736568,1714224371598,-30000.0,0.00044786,120]
[323736569,1714224371621,-185.36405554,0.0004479,30]
[323736570,1714224371645,-872.83859691,0.000448,60]
[323736571,1714224371670,-185.36405554,0.00044933,30]
[323736572,1714224371694,-2411.28280509,0.0004499,30]
[323736573,1714224371717,-219.44340154,0.00044999,120]
[323736574,1714224371740,-500.0,0.00045,30]
[323736575,1714224371764,-817.49184618,0.00045,20]
[323736576,1714224371788,-200.0,0.00045,120]
[323736577,1714224371813,-311.15163878,0.00045,120]
[323736578,1714224371840,-221.65555556,0.00045,120]
[323736579,1714224371864,-300.0,0.00045,19]
[323736580,1714224371889,-2864.04101906,0.00045,120]
[323736581,1714224371913,-2411.28280509,0.00045023,30]
[323736582,1714224371939,-200.0,0.00045124,120]
[323736583,1714224371963,-185.36405554,0.00045139,30]
[323736584,1714224371986,-151.05141863,0.00045192,30]
[323736585,1714224372010,-192.581771,0.0004533,30]
[323736586,1714224372036,-192.581771,0.00045463,30]
[323736587,1714224372060,-2228.46,0.00045479,48]
[323736588,1714224372083,-185.36405554,0.00045482,30]
[323736589,1714224372107,-88632.79066651,0.000455,120]
[323736590,1714224377388,-900000.0,0.000455,120]
[323736591,1714224381687,-4151.35797075,0.00041,120]
[323736592,1714224381714,-569367.20933349,0.000455,120]
[323736593,1714224381739,-397.57237085,0.0004552,30]
[323736594,1714224381766,-158.16159394,0.0004555,30]
[323736595,1714224381792,-275.96106052,0.0004559,30]
[323736596,1714224381817,-224.21192186,0.00045599,30]
[323736597,1714224381847,-192.581771,0.000456,30]
[323736598,1714224381873,-158.16159395,0.00045623,30]
[323736599,1714224381899,-2347.64028377,0.00045628,30]
[323736600,1714224381926,-221.65555556,0.00045644,120]
[323736601,1714224381951,-302.03780384,0.0004566,120]
[323736602,1714224381976,-2411.28280509,0.0004566,30]
[323736603,1714224382002,-275.96106052,0.00045717,30]
[323736604,1714224382028,-30000.0,0.00045786,120]
[323736605,1714224382053,-397.57237085,0.00045824,30]
[323736606,1714224382078,-2411.28280509,0.00045843,30]
[323736607,1714224382104,-397.57237085,0.00045871,30]
[323736608,1714224382130,-275.96106052,0.00045894,30]
[323736609,1714224382157,-397.57237085,0.00045981,30]
[323736610,1714224382182,-381.0,0.00046,22]
[323736611,1714224382207,-300.0,0.00046,21]
[323736612,1714224382232,-2411.28280509,0.00046041,30]
[323736613,1714224382257,-275.96106052,0.00046056,30]
[323736614,1714224382284,-2347.64028377,0.00046126,30]
[323736615,1714224382309,-397.572371,0.00046215,30]
[323736616,1714224382335,-200.0,0.00046221,120]
[323736617,1714224382361,-2347.64028377,0.00046243,30]
[323736618,1714224382386,-221.65555556,0.00046274,120]
[323736619,1714224382411,-2347.64028377,0.00046363,30]
[323736620,1714224382435,-200.0,0.00046372,120]
[323736621,1714224382460,-192.581771,0.00046406,30]
[323736622,1714224382487,-185.36405554,0.00046421,30]
[323736623,1714224382516,-192.581771,0.00046428,30]
[323736624,1714224382541,-275.96106052,0.0004647,30]
[323736625,1714224382564,-275.96106052,0.00046564,30]
[323736626,1714224382590,-2511.53110395,0.00046575,120]
[323736627,1714224382614,-2228.46,0.00046575,50]
[323736628,1714224382637,-2411.28280509,0.00046576,30]
[323736629,1714224382660,-2347.64028377,0.00046577,30]
[323736630,1714224382685,-2347.64028377,0.00046633,30]
[323736631,1714224382710,-185.36405554,0.00046705,30]
[323736632,1714224382734,-2347.64028404,0.00046773,30]
[323736633,1714224382759,-275.96106078,0.00046774,30]
[323736634,1714224382783,-1551.56944874,0.0004678,90]
[323736635,1714224382809,-192.581771,0.00046807,30]
[323736636,1714224382835,-2411.28280535,0.00046812,30]
[323736637,1714224382859,-185.36405572,0.00046817,30]
[323736638,1714224382885,-192.581771,0.00046839,30]
[323736639,1714224382912,-192.58177106,0.00046849,30]
[323736640,1714224382938,-28107.4517,0.000469,30]
[323736641,1714224382962,-221.65555556,0.00046904,120]
[323736642,1714224382990,-225372.81277927,0.0004698,120]
[323736643,1714224387800,-230.34451612,0.000275,17]
[323736644,1714224388226,-367.13740978,0.00044,30]
[323736645,1714224388252,-301399.39881625,0.0004698,120]
[323736646,1714224388278,-658.72032135,0.00047056,120]
[323736647,1714224388302,-1458.5,0.0004707,30]
[323736648,1714224388327,-2995.339146,0.00047489,120]
[323736649,1714224388350,-221.65555556,0.00047534,120]
[323736650,1714224388376,-2228.46,0.00047671,52]
[323736651,1714224388400,-30000.0,0.00047786,120]
[323736652,1714224388423,-742.0,0.00048,120]
[323736653,1714224388448,-1500.0,0.00048,120]
[323736654,1714224388473,-30000.0,0.00048,120]
[323736655,1714224388496,-303645.75594766,0.00048,120]
[323736656,1714224388519,-221.65555556,0.00048164,120]
[323736657,1714224388543,-2228.46,0.00048767,54]
[323736658,1714224388567,-221.65555556,0.00048795,120]
[323736659,1714224388591,-3219.64670223,0.00049,120]
[323736660,1714224388616,-1675.77,0.00049,30]
[323736661,1714224388640,-155.17373775,0.00049,15]
[323736662,1714224388663,-102499.087218,0.00049,10]
[323736663,1714224388687,-3659.24941199,0.00049041,60]
[323736664,1714224388710,-2000.0,0.00049041,60]
[323736665,1714224388733,-2503.47469574,0.00049041,60]
[323736666,1714224388903,154.86062544,0.0004434,10]
[323736667,1714224421386,5000.0,0.000266,120]
[323736668,1714224431081,4174.95180827,0.000266,120]
[323736669,1714224449705,154.86062544,0.00011952,2]
[323736670,1714224495572,6110.9299866,0.00011575,2]
[323736671,1714224513182,8234.20938796,0.00011952,2]
[323736673,1714224559421,-549.78691953,0.00011945,2]
[323736674,1714224559440,-719.84911317,0.00011945,2]
[323736675,1714224559460,-468.70122511,0.00011946,2]
[323736676,1714224559480,-472.36268614,0.00011946,2]
[323736677,1714224559500,-154.86062544,0.00011946,2]
[323736678,1714224559521,-154.86062544,0.00011946,2]
[323736679,1714224559541,-154.86062544,0.00011946,2]
[323736680,1714224559561,-154.86062544,0.00011947,2]
[323736681,1714224559582,-459.94893698,0.00011947,2]
[323736682,1714224559602,-540.12637106,0.00011948,2]
[323736683,1714224559622,-300.0,0.00011948,2]
[323736684,1714224559641,-154.86062544,0.00011948,2]
[323736685,1714224559660,-564.78311334,0.00011949,2]
[323736686,1714224559679,-154.86062544,0.00011949,2]
[323736687,1714224559698,-2589.08986255,0.00011949,2]
[323736688,1714224559718,-1879.01958772,0.00011949,2]
[323736689,1714224559737,-187.38988172,0.0001195,2]
[323736690,1714224559758,-409.08052799,0.0001195,2]
[323736691,1714224559777,-59189.32928802,0.0001195,2]
[323736692,1714224559796,-1202.83854325,0.0001195,2]
[323736693,1714224559817,-526.63352259,0.0001195,2]
[323736694,1714224559839,-1057.60563749,0.0001195,2]
[323736695,1714224559859,-520.25388846,0.0001195,2]
[323736696,1714224559882,-7870.62977803,0.00011951,2]
[323736697,1714224559904,-1491.10873787,0.00011951,2]
[323736698,1714224559926,-884.2224895,0.00011951,2]
[323736699,1714224560072,-164.04462217,0.00011951,2]
[323736700,1714224560094,-7864.25344989,0.00011952,2]
[323736701,1714224560114,-521.1072121,0.00011952,2]
[323736702,1714224560135,-154.86062544,0.00011952,2]
[323736703,1714224560155,-363.86320338,0.00011952,2]
[323736704,1714224560174,-158.81572532,0.00012566,2]
[323736705,1714224560193,-1312.48943229,0.00012567,2]
[323736706,1714224560213,-173.32023845,0.00012567,2]
[323736707,1714224560238,-3049.6859726,0.00012567,2]
[323736708,1714224560259,-154.86062544,0.00012567,2]
[323736709,1714224560279,-1091.11259634,0.00012567,2]
[323736710,1714224560299,-157.85138427,0.00012567,2]
[323736711,1714224560319,-206.17044886,0.00012568,2]
[323736712,1714224560339,-362.18450158,0.00012568,2]
[323736713,1714224560359,-981.19186942,0.00012569,2]
[323736714,1714224560379,-155.16949658,0.00012589,2]
[323736715,1714224560400,-486.08365262,0.00012686,2]
[323736716,1714224560419,-1272.8490852,0.00012691,2]
[323736717,1714224560439,-1275.30842342,0.00012695,2]
[323736718,1714224560459,-12136.95333664,0.00012696,2]
[323736719,1714224560480,-155.16949656,0.0001304,2]
[323736720,1714224560500,-159.9959211,0.00013108,2]
[323736721,1714224560519,-420.0,0.00013117,2]
[323736722,1714224560539,-155.16949656,0.00013491,2]
[323736723,1714224560560,-2043.8213619,0.00013699,2]
[323736724,1714224560580,-3197.37699466,0.00013799,2]
[323736725,1714224560600,-410173.25868321,0.000138,2]
[323736726,1714224560620,-730.38126429,0.000138,2]
[323736727,1714224560640,-155.16949656,0.00013941,2]
[323736728,1714224560660,-155.16949656,0.00014392,2]
[323736729,1714224560681,-587.0,0.000144,2]
[323736730,1714224560701,-1043.26675438,0.00014637,2]
[323736731,1714224560725,-9988.29200376,0.00014638,2]
[323736732,1714224560747,-522.91782,0.00014647,2]
[323736733,1714224560766,-169.715228,0.00014647,2]
[323736734,1714224560787,-300.0,0.00014728,2]
[323736735,1714224560806,-312.79447259,0.00015,2]
[323736736,1714224560827,-1548.33685473,0.00015543,2]
[323736737,1714224560846,-1548.33685472,0.00015546,2]
[323736738,1714224560868,-1548.33685472,0.0001555,2]
[323736739,1714224560887,-1200.76089313,0.00015552,2]
[323736740,1714224560909,-1548.33685472,0.00015553,2]
[323736741,1714224560928,-1548.33685472,0.00015556,2]
[323736742,1714224560949,-309.70578029,0.0001564,2]
[323736743,1714224560969,-823.0,0.00015809,2]
[323736744,1714224560995,-155.08819604,0.00015818,2]
[323736745,1714224561015,-420.0,0.00016201,2]
[323736746,1714224561036,-1152.0,0.00017356,2]
[323736747,1714224561056,-250.0,0.00017466,2]
[323736748,1714224561077,-556.48132381,0.00017821,2]
[323736785,1714224632138,-362.18450158,0.0001195,2]
[323736787,1714224632147,-981.19186942,0.0001195,2]
[323736789,1714224632157,-300.0,0.00011951,2]
[323736791,1714224632166,-229.6937319,0.00011952,2]
[323736793,1714224632176,-1491.10873787,0.00013144,2]
[323736795,1714224632186,-1202.83854325,0.00013145,2]
[323736797,1714224632195,-1879.01958772,0.00013145,2]
[323736799,1714224632204,-420.0,0.00013146,2]
[323736801,1714224632214,-154.86062544,0.00013796,2]
[323736803,1714224632223,-1395.16482312,0.00013797,2]
[323736805,1714224632231,-7997.71525966,0.00013798,2]
[323736807,1714224632240,-564.78311334,0.00013799,2]
[323736809,1714224632249,-157.69409561,0.00013799,2]
[323736811,1714224632259,-730.38126429,0.000138,2]
[323736813,1714224632268,-8912.93864246,0.000138,2]
[323736869,1714224638403,-3049.6859726,0.00013143,2]
[323736871,1714224638414,-154.86062544,0.00013144,2]
[323736872,1714224638423,-526.63352259,0.00013144,2]
[323736873,1714224638433,-187.38988172,0.00013144,2]
[323736874,1714224638443,-154.86062544,0.00013144,2]
[323736875,1714224638452,-409.08052799,0.00013144,2]
[323736876,1714224638462,-1057.60563749,0.00013144,2]
[323736877,1714224638472,-164.04462217,0.00013145,2]
[323736878,1714224638481,-27350.43460412,0.00013799,2]
[323736879,1714224638569,-18461.73099085,0.00013799,2]
[323736880,1714224638582,-10523.41631277,0.00013799,2]
[323736881,1714224638594,-2853.74738028,0.00013799,2]
[323736882,1714224638603,-49856.78725584,0.000138,2]
[323736903,1714224640423,-154.86062544,0.00013143,2]
[323736904,1714224640433,-280.60941362,0.000138,2]
[323736905,1714224640481,-10201.44874567,0.000138,2]
[323736906,1714224641084,154.38889814,0.00011849,2]
[323737058,1714224646304,-158.81572532,0.00013142,2]
[323737059,1714224646314,-459.94893698,0.00013143,2]
[323737060,1714224646324,-154.86062544,0.00013143,2]
[323737061,1714224646334,-1491.10873787,0.00013799,2]
[323737062,1714224646343,-487.49597439,0.00013799,2]
[323737063,1714224646369,-211.18667222,0.00013799,2]
[323737064,1714224646378,-338.71535184,0.00013799,2]
[323737065,1714224707382,330.0,0.000122,3]
[323737066,1714224928005,9385.3356043,0.00011129,2]
[323737067,1714224985565,460.27549756,0.00011129,2]
[323737068,1714224985596,60.83171454,0.00011129,2]
[323737069,1714224988665,363.86320338,0.00011129,2]
[323737070,1714224990608,164.75478051,0.00011129,2]
[323737071,1714224991621,729.7450776,0.00011129,2]
[323737072,1714224992082,155.19210508,0.00011038,2]
[323737073,1714224993396,13025.61311889,0.00011129,2]
[323737074,1714225045055,250.0,0.00010121,2]
[323737076,1714225108010,14750.0,0.00010121,2]
[323737077,1714225108042,4443.57611322,0.00010121,2]
[323737078,1714225110184,729.7450776,0.00010121,2]
[323737079,1714225111227,363.86320338,0.00010121,2]
[323737080,1714225115813,16098.46283785,0.00010121,2]
[323737081,1714225119087,164.75478051,0.00010121,2]
[323737082,1714225122102,521.1072121,0.00010121,2]
[323737083,1714225126125,729.7450776,0.00010121,2]
[323737084,1714225127205,363.86320338,0.00010121,2]
[323737085,1714225127908,6163.99272852,0.00010121,2]
[323737086,1714225133785,16098.46283785,0.00010121,2]
[323737087,1714225135091,243.53346427,0.00010121,2]
[323737088,1714225140088,153.44154691,0.00010121,2]
[323737089,1714225144591,1175.54,0.0002411,35]
[323737613,1714225223466,158.81572532,0.0001011,2]
[323737622,1714225223771,1312.48943229,0.0001011,2]
[323737701,1714225231246,206.17044886,0.0001011,2]
[323737702,1714225231551,2625.35839845,0.0001011,2]
[323737703,1714225233919,1890.88922962,0.0001011,2]
[323737704,1714225235155,187.38988172,0.0001011,2]
[323737705,1714225235762,768.52966256,0.0001011,2]
[323737706,1714225240180,1621.09215219,0.0001011,2]
[323737707,1714225243990,540.12637106,0.0001011,2]
[323737708,1714225244783,164.04462217,0.0001011,2]
[323737709,1714225244994,409.08052799,0.0001011,2]
[323737743,1714225248469,154.84515485,0.0001011,2]
[323737744,1714225248977,362.18450158,0.0001011,2]
[323737745,1714225249757,2589.08986255,0.0001011,2]
[323737746,1714225250822,564.78311334,0.0001011,2]
[323737747,1714225251239,3049.6859726,0.0001011,2]
[323737748,1714225251392,719.84911317,0.0001011,2]
[323737749,1714225251781,459.94893698,0.0001011,2]
[323737750,1714225253680,472.36268614,0.0001011,2]
[323737788,1714225254907,520.25388846,0.0001011,2]
[323737798,1714225255413,212.18025179,0.0001011,2]
[323737799,1714225257550,1202.83854325,0.0001011,2]
[323737800,1714225257725,1879.01958772,0.0001011,2]
[323737836,1714225259285,468.70122511,0.0001011,2]
[323737849,1714225260726,300.0,0.0001011,2]
[323737850,1714225261392,300.0,0.0001011,2]
[323737851,1714225261701,1091.11259634,0.0001011,2]
[323737852,1714225262219,173.32023845,0.0001011,2]
[323737853,1714225263397,1057.60563749,0.0001011,2]
[323737922,1714225267654,154.84515485,0.0001011,2]
[323737924,1714225267935,526.63352259,0.0001011,2]
[323737925,1714225268437,154.84515485,0.0001011,2]
[323737927,1714225271932,884.2224895,0.0001011,2]
[323737930,1714225273241,981.19186942,0.0001011,2]
[323737939,1714225282815,16098.46283785,0.0001011,2]
[323737940,1714225285104,521.1072121,0.0001011,2]
[323737941,1714225300802,16098.46283785,0.0001011,2]
[323737942,1714225303108,521.1072121,0.0001011,2]
[323737943,1714225320811,4686.2168855,0.0001011,2]
[323737944,1714225325106,521.1072121,0.0001011,2]
[323737945,1714225337372,1491.10873787,0.0001011,2]
[323737946,1714225339746,154.84515485,0.0001011,2]
[323737947,1714225340904,549.78691953,0.0001011,2]
[323737948,1714225341060,154.84515485,0.0001011,2]
[323737949,1714225341107,255.62543914,0.0001011,2]
[323737950,1714225349797,154.84515485,0.0001011,2]
[323737951,1714225502121,5980.5937287,9.936e-05,2]
[323737953,1714225587075,250.0,9.195e-05,2]
[323737954,1714225602471,884.2224895,0.0001011,2]
[323737955,1714225607096,154.84515485,0.0001011,2]
[323737956,1714225608293,206.17044886,0.0001011,2]
[323737957,1714225610869,154.84515485,9.853e-05,2]
[323737958,1714225617884,564.78311334,0.0001011,2]
[323737959,1714225618214,187.38988172,0.0001011,2]
[323737960,1714225618886,1312.48943229,0.0001011,2]
[323737961,1714225618917,2589.08986255,0.0001011,2]
[323737962,1714225619244,3049.6859726,0.0001011,2]
[323737963,1714225620017,362.18450158,0.0001011,2]
[323737964,1714225620758,300.0,0.0001011,2]
[323737965,1714225620944,1890.88922962,0.0001011,2]
[323737966,1714225622673,300.0,0.0001011,2]
[323737967,1714225623986,520.25388846,0.0001011,2]
[323737968,1714225624878,159.98045359,9.605e-05,2]
[323737969,1714225630801,1879.01958772,0.0001011,2]
[323737970,1714225632168,-154.84515485,0.00010111,2]
[323737971,1714225632190,-7870.62977803,0.00010111,2]
[323737972,1714225632209,-164.04462217,0.00010111,2]
[323737973,1714225632229,-579.63919765,0.00010111,2]
[323737974,1714225632249,-160.58737193,0.00010111,2]
[323737975,1714225632269,-206.17044886,0.00010111,2]
[323737976,1714225632289,-719.84911317,0.00010112,2]
[323737977,1714225632309,-549.78691953,0.00010112,2]
[323737978,1714225632328,-1202.83854325,0.00010113,2]
[323737979,1714225632348,-59189.32928802,0.00010113,2]
[323737980,1714225632368,-1491.10873787,0.00010114,2]
[323737981,1714225632387,-1057.60563749,0.00010114,2]
[323737982,1714225632408,-6933.99606226,0.00010115,2]
[323737983,1714225632428,-729.56943069,0.00010121,2]
[323737984,1714225632450,-1272.8490852,0.00010122,2]
[323737985,1714225632470,-154.84515485,0.00010372,2]
[323737986,1714225632489,-486.08365262,0.00010373,2]
[323737987,1714225632507,-190.6808952,0.00010376,2]
[323737988,1714225632527,-420.0,0.0001112,2]
[323737989,1714225632548,-420.0,0.00011121,2]
[323737990,1714225632570,-154.86062544,0.00011129,2]
[323737991,1714225632593,-587.0,0.0001223,2]
[323737992,1714225632613,-587.0,0.00012233,2]
[323737993,1714225632633,-628.00301293,0.00012418,2]
[323737994,1714225632652,-1699.21279944,0.000129,2]
[323737995,1714225632671,-1699.21279943,0.00012993,2]
[323737996,1714225632691,-823.0,0.00013452,2]
[323737997,1714225632711,-823.0,0.00013456,2]
[323737998,1714225632730,-169.715229,0.00013699,2]
[323737999,1714225632749,-438.925681,0.00013699,2]
[323738000,1714225632769,-2043.8213619,0.00013699,2]
[323738001,1714225632789,-157.85138427,0.00013798,2]
[323738002,1714225632808,-1275.30842342,0.00013798,2]
[323738003,1714225632827,-1735.38019087,0.00013798,2]
[323738004,1714225632847,-1576.28484247,0.00013798,2]
[323738005,1714225632866,-155.05870745,0.00013798,2]
[323738006,1714225632886,-476.86456651,0.00013798,2]
[323738007,1714225632906,-568.73987055,0.00013798,2]
[323738008,1714225632925,-212.18025179,0.00013798,2]
[323738009,1714225632944,-468.63626257,0.00013798,2]
[323738010,1714225632964,-324.04289778,0.00013798,2]
[323738011,1714225632984,-155.53211819,0.00013798,2]
[323738012,1714225633004,-1092.54611833,0.00013798,2]
[323738013,1714225633024,-526.48799582,0.00013798,2]
[323738014,1714225633045,-981.19186942,0.00013798,2]
[323738015,1714225633068,-259.28184344,0.00013798,2]
[323738016,1714225633092,-154.97593234,0.00013798,2]
[323738017,1714225633112,-818.06067443,0.00013798,2]
[323738018,1714225633133,-392.05397791,0.00013798,2]
[323738019,1714225633154,-362.18450158,0.00013798,2]
[323738020,1714225633173,-157.3988785,0.00013799,2]
[323738021,1714225633198,-99140.38766674,0.000138,2]
[323738022,1714225638115,-686.41574936,0.00013798,2]
[323738023,1714225638241,-223.78092913,0.00013798,2]
[323738024,1714225638267,-3049.6859726,0.00013799,2]
[323738025,1714225638290,-26121.18673296,0.000138,2]
[323738026,1714225639152,-2589.08986255,0.00013798,2]
[323738027,1714225639173,-42598.98798944,0.000138,2]
[323738030,1714225746092,-300.0,0.00012848,2]
[323738031,1714225746116,-300.0,0.00012848,2]
[323738032,1714225746138,-24900.0,0.00012849,2]
[323738033,1714225746159,-1057.60563749,0.00013794,2]
[323738034,1714225746180,-164.04462217,0.00013795,2]
[323738035,1714225746201,-2589.08986255,0.00013795,2]
[323738036,1714225746225,-3049.6859726,0.00013795,2]
[323738037,1714225746255,-49829.91390519,0.00013796,2]
[323738038,1714225754163,-9359.41538283,0.00013796,2]
[323738039,1714225754185,-564.82677522,0.00013797,2]
[323738040,1714225754207,-1024.03066195,0.00013797,2]
[323738104,1714225832768,-164.04462217,0.00013698,2]
[323738106,1714225832778,-1057.60563749,0.00013699,2]
[323738108,1714225832788,-1274.40959959,0.000137,2]
[323738110,1714225832797,-300.0,0.00013796,2]
[323738112,1714225832806,-300.0,0.00013796,2]
[323738114,1714225832816,-243.20278432,0.00013797,2]
[323738116,1714225832825,-215.76996313,0.00013797,2]
[323738118,1714225832834,-7870.62977803,0.00013797,2]
[323738120,1714225832844,-706.77782139,0.00013798,2]
[323738122,1714225832853,-240.49274537,0.00013798,2]
[323738124,1714225832862,-284.67779131,0.00013798,2]
[323738126,1714225832871,-265.1468592,0.00013798,2]
[323738128,1714225832880,-945.7056575,0.00013798,2]
[323738130,1714225832889,-361.91629684,0.00013798,2]
[323738132,1714225832898,-155.87018974,0.00013798,2]
[323738134,1714225832907,-1806.81192236,0.00013798,2]
[323738136,1714225832916,-428.50417622,0.00013798,2]
[323738138,1714225832925,-837.0803577,0.00013799,2]
[323738140,1714225832934,-6062.79192991,0.00013799,2]
[323738142,1714225832946,-7621.01947029,0.00013799,2]
[323738147,1714225832981,-45505.51788782,0.00013799,2]
[323738148,1714225832990,-159093.14168934,0.000138,2]
[323738151,1714225833001,-13967.77054714,0.000138,2]
[323738153,1714225833010,-730.38126429,0.000138,2]
[323738155,1714225833019,-928.19592699,0.00014,2]
[323738157,1714225833028,-312.71080906,0.00015,2]
[323738159,1714225833037,-2100.50593903,0.00015,2]
[323738161,1714225833046,-157.13367824,0.00015,2]
[323738163,1714225833056,-420.0,0.00015117,2]
[323738165,1714225833065,-420.0,0.00015176,2]
[323738167,1714225833074,-1274.40959957,0.0001619,2]
[323738169,1714225833083,-272.70165246,0.000165,2]
[323738171,1714225833092,-587.0,0.00016565,2]
[323738173,1714225833101,-587.0,0.00016693,2]
[323738175,1714225833111,-44444.0,0.000179,2]
[323738177,1714225833120,-153.0,0.00017956,2]
[323738179,1714225833130,-3386.51937499,0.00018,2]
[323738181,1714225833139,-2629.93378177,0.00018,7]
[323738183,1714225833150,-823.0,0.00018152,2]
[323738185,1714225833159,-153.0,0.00018256,2]
[323738187,1714225833169,-153.0,0.00018256,2]
[323738189,1714225833178,-823.0,0.00018362,2]
[323738191,1714225833187,-603.57234398,0.000185,2]
[323738193,1714225833196,-1274.40959957,0.00018681,2]
[323738195,1714225833206,-153.0,0.00018804,2]
[323738197,1714225833215,-153.0,0.00018804,2]
[323738199,1714225833225,-153.0,0.00018804,2]
[323738201,1714225833238,-660.4466416,0.000189,2]
[323738203,1714225833248,-153.0,0.00018904,2]
[323738205,1714225833257,-189.30063706,0.0001897,2]
[323738207,1714225833266,-7930.56704238,0.00019,2]
[323738209,1714225833276,-154.84515485,0.00019,2]
[323738212,1714225833287,-417.639,0.00019094,2]
[323738215,1714225833306,-150.026,0.00019094,2]
[323738217,1714225833323,-384.40664766,0.00019178,2]
[323738220,1714225833341,-500.0,0.00019178,2]
[323738223,1714225833360,-605.23015177,0.00019178,2]
[323738226,1714225833375,-500.0,0.00019178,2]
[323738229,1714225833390,-159.56996,0.00019178,2]